fUST/lending_fUST_20260619
["ID","MTS","AMOUNT","RATE_DAILY","PERIOD"]
[425640756,1781849439000,-500.0,0.00016438,2]
[425640750,1781849439000,-500.0,0.00016438,2]
[425640752,1781849439000,-500.0,0.00016438,2]
[425640766,1781849439000,-500.0,0.00016438,2]
[425640768,1781849439000,-500.0,0.00016438,2]
[425640771,1781849439000,-500.0,0.00016438,2]
[425640769,1781849439000,-1652.82,0.00016438,2]
[425640773,1781849439000,-500.0,0.00016438,2]
[425640777,1781849439000,-555.43025528,0.00016438,2]
[425640652,1781849439000,-500.0,0.00016438,2]
[425640775,1781849439000,-509.72911745,0.00016438,2]
[425640760,1781849439000,-500.0,0.00016438,2]
[425640719,1781849439000,-514.60425226,0.00016438,2]
[425640746,1781849439000,-500.0,0.00016438,2]
[425640723,1781849439000,-500.0,0.00016438,2]
[425640655,1781849439000,-509.02356707,0.00016438,2]
[425640721,1781849439000,-500.0,0.00016438,2]
[425640662,1781849439000,-500.0,0.00016438,2]
[425640668,1781849439000,-625.84,0.00016438,2]
[425640671,1781849439000,-500.0,0.00016438,2]
[425640673,1781849439000,-500.0,0.00016438,2]
[425640674,1781849439000,-500.0,0.00016438,2]
[425640676,1781849439000,-500.0,0.00016438,2]
[425640680,1781849439000,-500.0,0.00016438,2]
[425640678,1781849439000,-500.0,0.00016438,2]
[425640688,1781849439000,-521.12490063,0.00016438,2]
[425640682,1781849439000,-500.0,0.00016438,2]
[425640686,1781849439000,-500.0,0.00016438,2]
[425640684,1781849439000,-500.0,0.00016438,2]
[425640661,1781849439000,-523.52077079,0.00016438,2]
[425640707,1781849439000,-500.0,0.00016438,2]
[425640699,1781849439000,-500.0,0.00016438,2]
[425640717,1781849439000,-523.47205526,0.00016438,2]
[425640705,1781849439000,-500.0,0.00016438,2]
[425640709,1781849439000,-513.87347527,0.00016438,2]
[425640703,1781849439000,-500.0,0.00016438,2]
[425640713,1781849439000,-517.06651606,0.00016438,2]
[425640715,1781849439000,-513.31388399,0.00016438,2]
[425640701,1781849439000,-500.0,0.00016438,2]
[425640697,1781849439000,-500.0,0.00016438,2]
[425640694,1781849439000,-500.0,0.00016438,2]
[425640692,1781849439000,-500.0,0.00016438,2]
[425640711,1781849439000,-199.32437332,0.00016438,2]
[425640854,1781849440000,-500.0,0.00016712,2]
[425640856,1781849440000,-400.84557689,0.00016712,2]
[425640852,1781849440000,-500.0,0.00016712,2]
[425640846,1781849440000,-500.0,0.00016712,2]
[425640836,1781849440000,-151.71,0.00016712,2]
[425640848,1781849440000,-1000.0,0.00016712,2]
[425640858,1781849440000,-500.0,0.00016712,2]
[425640842,1781849440000,-500.0,0.00016712,2]
[425640844,1781849440000,-518.24751325,0.00016712,2]
[425640850,1781849440000,-500.0,0.00016712,2]
[425640839,1781849440000,-500.0,0.00016712,2]
[425640860,1781849440000,-631.87681772,0.00016712,2]
[425640864,1781849440000,-500.0,0.00016712,2]
[425640870,1781849440000,-500.0,0.00016712,2]
[425640862,1781849440000,-500.0,0.00016712,2]
[425640866,1781849440000,-500.0,0.00016712,2]
[425640872,1781849440000,-500.0,0.00016712,2]
[425640876,1781849440000,-500.0,0.00016712,2]
[425640874,1781849440000,-500.0,0.00016712,2]
[425640878,1781849440000,-500.0,0.00016712,2]
[425640884,1781849440000,-500.0,0.00016712,2]
[425640880,1781849440000,-500.0,0.00016712,2]
[425640882,1781849440000,-1652.82,0.00016712,2]
[425640886,1781849440000,-500.0,0.00016712,2]
[425640888,1781849440000,-500.0,0.00016712,2]
[425640890,1781849440000,-500.0,0.00016712,2]
[425640868,1781849440000,-240.0,0.00016712,2]
[425640835,1781849440000,-500.0,0.00016712,2]
[425640779,1781849440000,-500.0,0.00016438,2]
[425640833,1781849440000,-525.75847193,0.00016712,2]
[425640894,1781849440000,-500.0,0.00016712,2]
[425640781,1781849440000,-500.0,0.00016438,2]
[425640787,1781849440000,-500.0,0.00016438,2]
[425640783,1781849440000,-500.0,0.00016438,2]
[425640785,1781849440000,-500.0,0.00016438,2]
[425640789,1781849440000,-500.0,0.00016438,2]
[425640791,1781849440000,-617.94562733,0.00016438,2]
[425640793,1781849440000,-500.0,0.00016438,2]
[425640794,1781849440000,-519.09329317,0.00016438,2]
[425640798,1781849440000,-500.0,0.00016438,2]
[425640796,1781849440000,-500.0,0.00016438,2]
[425640800,1781849440000,-183.02457365,0.000165,2]
[425640813,1781849440000,-250.0011,0.00016712,2]
[425640811,1781849440000,-600.0,0.00016562,2]
[425640802,1781849440000,-190.74450256,0.000165,2]
[425640804,1781849440000,-189.85755289,0.000165,2]
[425640808,1781849440000,-445.0,0.00016502,2]
[425640806,1781849440000,-192.99213422,0.000165,2]
[425640809,1781849440000,-186.0,0.00016502,2]
[425640815,1781849440000,-512.32324247,0.00016712,2]
[425640817,1781849440000,-503.94,0.00016712,2]
[425640819,1781849440000,-625.84,0.00016712,2]
[425640821,1781849440000,-448.2407431,0.00016712,2]
[425640823,1781849440000,-509.50216706,0.00016712,2]
[425640829,1781849440000,-500.0,0.00016712,2]
[425640825,1781849440000,-500.0,0.00016712,2]
[425640827,1781849440000,-500.0,0.00016712,2]
[425640831,1781849440000,-508.91052322,0.00016712,2]
[425640892,1781849440000,-500.0,0.00016712,2]
[425640940,1781849440000,-500.0,0.00016986,2]
[425640898,1781849440000,-500.0,0.00016712,2]
[425640965,1781849440000,-500.0,0.0001726,2]
[425640961,1781849440000,-500.0,0.0001726,2]
[425640966,1781849440000,-500.0,0.0001726,2]
[425640968,1781849440000,-1652.82,0.0001726,2]
[425640972,1781849440000,-249.07,0.00017364,2]
[425640970,1781849440000,-500.0,0.0001726,2]
[425640980,1781849440000,-1904.43687789,0.00017365,2]
[425640978,1781849440000,-284.976,0.00017364,2]
[425640982,1781849440000,-625.84,0.00017534,2]
[425640974,1781849440000,-247.561,0.00017364,2]
[425640976,1781849440000,-151.087,0.00017364,2]
[425640983,1781849440000,-500.0,0.00017534,2]
[425640985,1781849440000,-500.0,0.00017534,2]
[425640987,1781849440000,-500.0,0.00017534,2]
[425640989,1781849440000,-500.0,0.00017534,2]
[425640991,1781849440000,-1652.82,0.00017534,2]
[425640993,1781849440000,-500.0,0.00017534,2]
[425641004,1781849440000,-500.0,0.00017808,2]
[425641006,1781849440000,-500.0,0.00017808,2]
[425641009,1781849440000,-500.0,0.00017808,2]
[425641002,1781849440000,-625.84,0.00017808,2]
[425641007,1781849440000,-500.0,0.00017808,2]
[425640997,1781849440000,-533.86,0.00017693,3]
[425640998,1781849440000,-151.0,0.00017696,2]
[425641000,1781849440000,-362.198044,0.00017766,2]
[425641014,1781849440000,-1652.82,0.00017808,2]
[425640908,1781849440000,-700.74417517,0.000169,2]
[425640963,1781849440000,-500.0,0.0001726,2]
[425640950,1781849440000,-484.94,0.00016986,2]
[425640995,1781849440000,-1067.72,0.00017693,3]
[425640952,1781849440000,-500.0,0.00016986,2]
[425640902,1781849440000,-500.0,0.00016712,2]
[425640953,1781849440000,-312.24593032,0.00017012,2]
[425640900,1781849440000,-500.0,0.00016712,2]
[425640906,1781849440000,-500.0,0.00016712,2]
[425640910,1781849440000,-474.82012959,0.00016986,2]
[425640913,1781849440000,-151.01987041,0.00016986,2]
[425640919,1781849440000,-500.94469071,0.00016986,2]
[425640915,1781849440000,-237.5,0.00016986,2]
[425640917,1781849440000,-284.71,0.00016986,2]
[425640920,1781849440000,-508.32769796,0.00016986,2]
[425640922,1781849440000,-1000.0,0.00016986,2]
[425640924,1781849440000,-181.11086629,0.00016986,2]
[425640931,1781849440000,-500.0,0.00016986,2]
[425640896,1781849440000,-500.0,0.00016712,2]
[425640933,1781849440000,-474.78808671,0.00016986,2]
[425640926,1781849440000,-500.0,0.00016986,2]
[425640959,1781849440000,-625.84,0.0001726,2]
[425640946,1781849440000,-1652.82,0.00016986,2]
[425640955,1781849440000,-362.198044,0.00017102,2]
[425640957,1781849440000,-203.48226849,0.00017161,7]
[425640944,1781849440000,-511.78646617,0.00016986,2]
[425640948,1781849440000,-500.0,0.00016986,2]
[425640938,1781849440000,-500.0,0.00016986,2]
[425640937,1781849440000,-500.0,0.00016986,2]
[425640930,1781849440000,-521.57088458,0.00016986,2]
[425640935,1781849440000,-500.0,0.00016986,2]
[425640928,1781849440000,-500.0,0.00016986,2]
[425640942,1781849440000,-500.0,0.00016986,2]
[425641061,1781849441000,-500.0,0.00018904,2]
[425641079,1781849441000,-854.939302,0.00018926,2]
[425641064,1781849441000,-160.0,0.00018926,2]
[425641067,1781849441000,-492.661475,0.00018926,2]
[425641063,1781849441000,-419.871337,0.00018926,2]
[425641069,1781849441000,-160.0,0.00018926,2]
[425641071,1781849441000,-305.636026,0.00018926,2]
[425641073,1781849441000,-451.272053,0.00018926,2]
[425641075,1781849441000,-160.0,0.00018926,2]
[425641065,1781849441000,-326.330737,0.00018926,2]
[425641084,1781849441000,-849.410564,0.00018926,2]
[425641086,1781849441000,-320.923236,0.00018926,2]
[425641081,1781849441000,-160.0,0.00018926,2]
[425641090,1781849441000,-184.127931,0.00018926,2]
[425641088,1781849441000,-160.0,0.00018926,2]
[425641092,1781849441000,-208.255863,0.00018926,2]
[425641082,1781849441000,-504.705282,0.00018926,2]
[425641094,1781849441000,-362.198044,0.00019094,2]
[425641096,1781849441000,-326.117,0.00019095,2]
[425641098,1781849441000,-625.84,0.00019178,2]
[425641100,1781849441000,-300.0,0.00019178,2]
[425641062,1781849441000,-1652.82,0.00018904,2]
[425641102,1781849441000,-500.0,0.00019178,2]
[425641077,1781849441000,-507.469651,0.00018926,2]
[425641060,1781849441000,-500.0,0.00018904,2]
[425641048,1781849441000,-529.63134154,0.00018548,2]
[425641059,1781849441000,-625.84,0.00018904,2]
[425641104,1781849441000,-500.0,0.00019178,2]
[425641018,1781849441000,-2673.17552348,0.00018,2]
[425641023,1781849441000,-500.0,0.00018082,2]
[425641020,1781849441000,-625.84,0.00018082,2]
[425641022,1781849441000,-488.03853116,0.00018082,2]
[425641016,1781849441000,-500.0,0.00017808,2]
[425641025,1781849441000,-500.0,0.00018082,2]
[425641029,1781849441000,-1652.82,0.00018082,2]
[425641027,1781849441000,-318.90841266,0.00018082,2]
[425641031,1781849441000,-500.0,0.00018082,2]
[425641033,1781849441000,-674.44006609,0.00018178,2]
[425641035,1781849441000,-720.0,0.00018218,2]
[425641050,1781849441000,-1245.76742252,0.00018574,2]
[425641052,1781849441000,-555.10387612,0.0001861,2]
[425641039,1781849441000,-500.0,0.00018356,2]
[425641037,1781849441000,-625.84,0.00018356,2]
[425641041,1781849441000,-500.0,0.00018356,2]
[425641043,1781849441000,-1652.82,0.00018356,2]
[425641046,1781849441000,-362.198044,0.0001843,2]
[425641055,1781849441000,-500.0,0.0001863,2]
[425641056,1781849441000,-500.0,0.0001863,2]
[425641054,1781849441000,-625.84,0.0001863,2]
[425641057,1781849441000,-1652.82,0.0001863,2]
[425641058,1781849441000,-500.0,0.0001863,2]
[425641113,1781849441000,-160.0,0.00019205,2]
[425641044,1781849441000,-500.0,0.00018356,2]
[425641110,1781849441000,-196.49955408,0.000192,2]
[425641165,1781849441000,-196.49955408,0.000196,2]
[425641171,1781849441000,-625.84,0.00019726,2]
[425641169,1781849441000,-283.500047,0.00019707,2]
[425641167,1781849441000,-1189.78668322,0.000196,2]
[425641173,1781849441000,-500.0,0.00019726,2]
[425641183,1781849441000,-251.922802,0.00019873,2]
[425641185,1781849441000,-587.395328,0.00019873,2]
[425641189,1781849441000,-913.445371,0.00019873,2]
[425641187,1781849441000,-550.144847,0.00019873,2]
[425641175,1781849441000,-500.0,0.00019726,2]
[425641179,1781849441000,-407.00954085,0.00019781,3]
[425641181,1781849441000,-1189.78668322,0.000198,2]
[425641192,1781849441000,-908.469507,0.00019873,2]
[425641196,1781849441000,-331.430276,0.00019873,2]
[425641195,1781849441000,-192.553942,0.00019873,2]
[425641198,1781849441000,-106949.68655663,0.0001991,2]
[425641223,1781849441000,-3595.10822257,0.0001991,2]
[425641221,1781849441000,-500.0,0.00019726,2]
[425641214,1781849441000,-2742.38910417,0.00018429,2]
[425641215,1781849441000,-500.0,0.00018904,2]
[425641217,1781849441000,-500.0,0.00019178,2]
[425641219,1781849441000,-500.0,0.00019452,2]
[425641106,1781849441000,-1652.82,0.00019178,2]
[425641164,1781849441000,-173.825631,0.00019512,2]
[425641160,1781849441000,-162.893563,0.00019512,2]
[425641176,1781849441000,-1652.82,0.00019726,2]
[425641158,1781849441000,-186.0,0.00019502,2]
[425641112,1781849441000,-1189.78668322,0.000192,2]
[425641115,1781849441000,-160.0,0.00019205,2]
[425641108,1781849441000,-417.15472785,0.000192,3]
[425641119,1781849441000,-417.15472785,0.00019205,2]
[425641121,1781849441000,-160.0,0.00019205,2]
[425641123,1781849441000,-191.35142068,0.00019331,2]
[425641127,1781849441000,-1189.78668322,0.000194,2]
[425641125,1781849441000,-196.49955408,0.000194,2]
[425641135,1781849441000,-1652.82,0.00019452,2]
[425641139,1781849441000,-500.0,0.00019465,2]
[425641117,1781849441000,-160.0,0.00019205,2]
[425641129,1781849441000,-625.84,0.00019452,2]
[425641140,1781849441000,-500.0,0.00019465,2]
[425641137,1781849441000,-500.0,0.00019465,2]
[425641133,1781849441000,-500.0,0.00019452,2]
[425641142,1781849441000,-500.0,0.00019465,2]
[425641144,1781849441000,-500.0,0.00019465,2]
[425641146,1781849441000,-500.0,0.00019465,2]
[425641148,1781849441000,-500.0,0.00019465,2]
[425641150,1781849441000,-500.0,0.00019465,2]
[425641154,1781849441000,-224.41559442,0.00019492,2]
[425641156,1781849441000,-445.0,0.00019502,2]
[425641152,1781849441000,-776.98306665,0.00019465,2]
[425641131,1781849441000,-500.0,0.00019452,2]
[425641162,1781849441000,-189.000031,0.00019512,2]
[425641828,1781849448000,-16344.42121999,0.0001991,2]
[425641825,1781849448000,-173.46996129,0.00016037,2]
[425641827,1781849448000,-189.8954589,0.00018536,2]
[425641841,1781849448000,-27146.32008452,0.0001991,2]
[425641843,1781849448000,-22115.93331337,0.0001991,2]
[425642387,1781849652000,178.240196,0.00015243,120]
[425642480,1781850632000,-3307.53196674,0.00014008,2]
[425642481,1781850632000,-1301.80931151,0.00014422,2]
[425642582,1781850638000,-500.0,0.00016712,2]
[425642586,1781850638000,-757.54,0.00016712,2]
[425642584,1781850638000,-500.0,0.00016712,2]
[425642591,1781850638000,-500.0,0.00016986,2]
[425642576,1781850638000,-500.0,0.00016712,2]
[425642574,1781850638000,-3961.00959386,0.00016438,2]
[425642570,1781850638000,-500.0,0.00016438,2]
[425642569,1781850638000,-500.0,0.00016438,2]
[425642580,1781850638000,-500.0,0.00016712,2]
[425642566,1781850638000,-387.301468,0.00016438,2]
[425642565,1781850638000,-500.0,0.00016438,2]
[425642563,1781850638000,-1294.07,0.00016438,2]
[425642559,1781850638000,-600.0,0.00015824,2]
[425642561,1781850638000,-500.0,0.00016438,2]
[425642557,1781850638000,-500.0,0.00015536,2]
[425642555,1781850638000,-500.0,0.00015514,2]
[425642553,1781850638000,-178.240196,0.00015243,2]
[425642551,1781850638000,-1862.64611839,0.00014437,2]
[425642536,1781850638000,-639.05146339,0.00014422,2]
[425642538,1781850638000,-2087.76853661,0.00014437,2]
[425642578,1781850638000,-1294.07,0.00016712,2]
[425642588,1781850638000,-295.874,0.00016986,2]
[425642572,1781850638000,-757.54,0.00016438,2]
[425642607,1781850638000,-757.54,0.0001726,2]
[425642590,1781850638000,-1294.07,0.00016986,2]
[425642629,1781850638000,-757.54,0.00017808,2]
[425642621,1781850638000,-500.0,0.00017534,2]
[425642625,1781850638000,-1294.07,0.00017808,2]
[425642623,1781850638000,-757.54,0.00017534,2]
[425642627,1781850638000,-500.0,0.00017808,2]
[425642631,1781850638000,-387.62725379,0.00017924,2]
[425642632,1781850638000,-10226.84141028,0.00017925,2]
[425642620,1781850638000,-1294.07,0.00017534,2]
[425642616,1781850638000,-500.0,0.00017533,2]
[425642618,1781850638000,-456.83135661,0.00017533,2]
[425642635,1781850638000,-498652.82639702,0.00017925,2]
[425642610,1781850638000,-5134.41673642,0.00017434,2]
[425642612,1781850638000,-445.0,0.00017493,2]
[425642609,1781850638000,-720.0,0.00017407,2]
[425642601,1781850638000,-318.90562327,0.0001726,2]
[425642603,1781850638000,-500.0,0.0001726,2]
[425642597,1781850638000,-757.54,0.00016986,2]
[425642595,1781850638000,-500.0,0.00016986,2]
[425642593,1781850638000,-500.0,0.00016986,2]
[425642599,1781850638000,-1294.07,0.0001726,2]
[425642605,1781850638000,-511.94633594,0.0001726,2]
[425642614,1781850638000,-186.0,0.00017493,2]
[425642856,1781850640000,-364.124706,0.00017925,2]
[425642858,1781850640000,-3295.25977323,0.00017925,2]
[425642847,1781850640000,-3312.12104453,0.00017925,2]
[425643216,1781850643000,-903.42169725,0.00017925,2]
[425643187,1781850643000,-255.72294231,0.00017925,2]
[425643576,1781850646000,-304.0,0.00017925,2]
[425647948,1781850710000,-247.05388262,0.00017266,14]
[425648062,1781851832000,-907.90207337,0.00016985,2]
[425648061,1781851832000,-500.0,0.00016711,2]
[425648060,1781851832000,-970.55,0.00016711,2]
[425648058,1781851832000,-328.47925745,0.00016225,2]
[425648059,1781851832000,-616.1357568,0.00016266,2]
[425648126,1781851838000,-500.0,0.00016985,2]
[425648124,1781851838000,-62.64792663,0.00016985,2]
[425648132,1781851838000,-401.47464799,0.00017025,2]
[425648134,1781851838000,-186.0,0.00017129,2]
[425648128,1781851838000,-3834.57000001,0.00017025,2]
[425648130,1781851838000,-3137.37545456,0.00017025,2]
[425648136,1781851838000,-445.0,0.00017129,2]
[425648140,1781851838000,-500.0,0.00017259,2]
[425648147,1781851838000,-175.07499795,0.000175,2]
[425648138,1781851838000,-970.55,0.00017259,2]
[425648145,1781851838000,-173.78194899,0.000175,2]
[425648143,1781851838000,-173.26914111,0.000175,2]
[425648151,1781851838000,-500.0,0.00017533,2]
[425648149,1781851838000,-970.55,0.00017533,2]
[425648155,1781851838000,-500.0,0.00017624,2]
[425648153,1781851838000,-347.74988435,0.00017624,2]
[425648159,1781851838000,-475.72277459,0.00017624,2]
[425648157,1781851838000,-283.71173278,0.00017624,2]
[425648161,1781851838000,-2850.12954319,0.00017625,2]
[425648142,1781851838000,-169.31385168,0.000175,2]
[425648391,1781851841000,-786.88397015,0.00017625,2]
[425648389,1781851841000,-453.92900994,0.00017625,2]
[425648383,1781851841000,-3101.7112518,0.00017625,2]
[425648691,1781851843000,-644.88756035,0.00017625,2]
[425648693,1781851843000,-5502.35841072,0.00017625,2]
[425648721,1781851843000,-6310.09945874,0.00017625,2]
[425648719,1781851843000,-6611.2858165,0.00017625,2]
[425648689,1781851843000,-3928.60947472,0.00017625,2]
[425649048,1781851846000,-44695.27226744,0.00017625,2]
[425649024,1781851846000,-12519.12770788,0.00017625,2]
[425649021,1781851846000,-1631.70070555,0.00017625,2]
[425654702,1781853032000,-866.48245663,0.00016689,2]
[425654697,1781853032000,-1944.56508608,0.00015062,2]
[425654695,1781853032000,-2238.35,0.00014911,2]
[425654698,1781853032000,-312.24593032,0.00016689,2]
[425654700,1781853032000,-555.10387612,0.00016689,2]
[425654704,1781853032000,-423.6044648,0.00016825,2]
[425654718,1781853032000,-152.0,0.00017163,7]
[425654712,1781853032000,-304.323,0.00017076,2]
[425654710,1781853032000,-162.48,0.0001704,2]
[425654714,1781853032000,-186.0,0.00017129,2]
[425654720,1781853032000,-18822.84404496,0.00017325,2]
[425654716,1781853032000,-445.0,0.00017129,2]
[425654708,1781853032000,-346.5854712,0.00016825,2]
[425654889,1781853038000,-292797.7555736,0.00017325,2]
[425654883,1781853038000,-45134.53129323,0.00017325,2]
[425654885,1781853038000,-2765.77180788,0.00017325,2]
[425654887,1781853038000,-6949.79294667,0.00017325,2]
[425655402,1781853043000,-13429.38261749,0.00017325,2]
[425655427,1781853043000,-4135.43088264,0.00017325,2]
[425655429,1781853043000,-7778.05196821,0.00017325,2]
[425655735,1781853046000,-669.14969999,0.00017325,2]
[425655726,1781853046000,-3846.20485577,0.00017325,2]
[425655716,1781853046000,-152.0,0.00017163,7]
[425655718,1781853046000,-12256.0,0.00017325,2]
[425659546,1781854232000,-184.21329258,0.00014165,2]
[425659548,1781854232000,-321.76551674,0.00014309,2]
[425659545,1781854232000,-247.05388262,0.00013365,14]
[425659549,1781854232000,-115.21134896,0.00014309,2]
[425659547,1781854232000,-163.63250448,0.0001423,7]
[425659550,1781854232000,-252.15293815,0.00014309,2]
[425659555,1781854232000,-428.91138341,0.00015062,2]
[425659552,1781854232000,-879.09516517,0.00015062,2]
[425659551,1781854232000,-488.38620287,0.00015062,2]
[425659553,1781854232000,-621.32323862,0.00015062,2]
[425659554,1781854232000,-414.5,0.00015062,2]
[425659771,1781854240000,-352.47169563,0.00015907,2]
[425659765,1781854240000,-214.582371,0.00015372,2]
[425659763,1781854240000,-600.0,0.00015362,2]
[425659762,1781854240000,-300.0,0.00015362,2]
[425659752,1781854240000,-300.0,0.00015362,2]
[425659750,1781854240000,-300.0,0.00015362,2]
[425659756,1781854240000,-300.0,0.00015362,2]
[425659758,1781854240000,-300.0,0.00015362,2]
[425659749,1781854240000,-300.0,0.00015362,2]
[425659745,1781854240000,-300.0,0.00015362,2]
[425659754,1781854240000,-300.0,0.00015362,2]
[425659743,1781854240000,-300.0,0.00015362,2]
[425659739,1781854240000,-300.0,0.00015362,2]
[425659741,1781854240000,-300.0,0.00015362,2]
[425659731,1781854240000,-4781.39860336,0.00015062,2]
[425659729,1781854240000,-3516.38066068,0.00015062,2]
[425659727,1781854240000,-2441.93101436,0.00015062,2]
[425659725,1781854240000,-98.10122716,0.00015062,2]
[425659737,1781854240000,-300.0,0.00015362,2]
[425659735,1781854240000,-300.0,0.00015362,2]
[425659733,1781854240000,-300.0,0.00015362,2]
[425659767,1781854240000,-168.146129,0.00015394,2]
[425659776,1781854240000,-500.0,0.00016438,2]
[425659747,1781854240000,-300.0,0.00015362,2]
[425659773,1781854240000,-402.824795,0.00015907,2]
[425659816,1781854240000,-500.0,0.00016991,2]
[425659814,1781854240000,-500.0,0.00016991,2]
[425659811,1781854240000,-500.0,0.00016991,2]
[425659769,1781854240000,-160.0,0.00015851,2]
[425659805,1781854240000,-504.21868562,0.00016991,2]
[425659803,1781854240000,-393.50772709,0.00016991,2]
[425659813,1781854240000,-500.0,0.00016991,2]
[425659809,1781854240000,-477.94610916,0.00016991,2]
[425659801,1781854240000,-172.54383881,0.00016991,2]
[425659800,1781854240000,-568.16,0.00016986,2]
[425659798,1781854240000,-720.0,0.00016898,2]
[425659807,1781854240000,-500.0,0.00016991,2]
[425659796,1781854240000,-164.15543101,0.00016892,2]
[425659792,1781854240000,-159.28368088,0.0001685,2]
[425659774,1781854240000,-628.78432845,0.00015907,2]
[425659778,1781854240000,-568.16,0.00016438,2]
[425659781,1781854240000,-206.008393,0.00016645,2]
[425659786,1781854240000,-290.53279,0.00016744,2]
[425659784,1781854240000,-568.16,0.00016712,2]
[425659788,1781854240000,-332.03747429,0.00016744,2]
[425659790,1781854240000,-518.28974502,0.00016744,2]
[425659794,1781854240000,-4655.45307316,0.00016892,2]
[425659782,1781854240000,-377.23897423,0.00016689,2]
[425659846,1781854241000,-500.0,0.00016991,2]
[425659833,1781854241000,-500.0,0.00016991,2]
[425659843,1781854241000,-500.0,0.00016991,2]
[425659852,1781854241000,-444.03064578,0.00016991,2]
[425659841,1781854241000,-500.0,0.00016991,2]
[425659839,1781854241000,-500.0,0.00016991,2]
[425659829,1781854241000,-500.0,0.00016991,2]
[425659837,1781854241000,-500.0,0.00016991,2]
[425659828,1781854241000,-500.0,0.00016991,2]
[425659831,1781854241000,-500.0,0.00016991,2]
[425659835,1781854241000,-500.0,0.00016991,2]
[425659822,1781854241000,-500.0,0.00016991,2]
[425659820,1781854241000,-500.0,0.00016991,2]
[425659824,1781854241000,-500.0,0.00016991,2]
[425659818,1781854241000,-500.0,0.00016991,2]
[425659859,1781854241000,-500.0,0.00016991,2]
[425659826,1781854241000,-500.0,0.00016991,2]
[425659848,1781854241000,-500.0,0.00016991,2]
[425659845,1781854241000,-500.0,0.00016991,2]
[425659857,1781854241000,-399.13210213,0.00016991,2]
[425659850,1781854241000,-500.0,0.00016991,2]
[425659894,1781854241000,-18681.69437995,0.00017125,2]
[425659889,1781854241000,-7031.587956,0.00017125,2]
[425659891,1781854241000,-5568.48408978,0.00017125,2]
[425659893,1781854241000,-641315.85818882,0.00017125,2]
[425659887,1781854241000,-2725.57196112,0.00017125,2]
[425659878,1781854241000,-283.348,0.00017091,2]
[425659882,1781854241000,-243.42491905,0.00017124,2]
[425659880,1781854241000,-961.371,0.00017091,2]
[425659884,1781854241000,-265655.50646641,0.00017125,2]
[425659854,1781854241000,-500.0,0.00016991,2]
[425659872,1781854241000,-4944.67807024,0.00016994,2]
[425659874,1781854241000,-806.58998702,0.00017025,2]
[425659870,1781854241000,-277.271,0.00016994,2]
[425659868,1781854241000,-500.0,0.00016993,2]
[425659866,1781854241000,-524.29841156,0.00016993,2]
[425659876,1781854241000,-445.0,0.00017091,2]
[425659864,1781854241000,-511.32483577,0.00016993,2]
[425659862,1781854241000,-500.0,0.00016991,2]
[425659861,1781854241000,-500.0,0.00016991,2]
[425660488,1781854246000,-500.0,0.00016438,2]
[425660492,1781854246000,-500.0,0.00016986,2]
[425660490,1781854246000,-500.0,0.00016712,2]
[425660494,1781854246000,-1100.48854526,0.00017125,2]
[425661754,1781854282000,500.0,0.00015361,2]
[425661756,1781854309000,-5984.26503908,0.00016892,2]
[425661811,1781855440000,-152.0,0.0001614,7]
[425661810,1781855440000,-152.0,0.00016135,7]
[425661807,1781855440000,-500.0,0.00015361,2]
[425661809,1781855440000,-357.82449034,0.00015849,2]